fUST/lending_fUST_20241009
["ID","MTS","AMOUNT","RATE_DAILY","PERIOD"]
[340069518,1728459068575,-500.0,0.00055232,120]
[340069519,1728459068585,-503.84701158,0.00055232,120]
[340069520,1728459068595,-500.0,0.00055232,120]
[340069521,1728459068604,-579.92120514,0.00055232,120]
[340069522,1728459068614,-500.0,0.00055232,120]
[340069523,1728459068623,-500.0,0.00055232,120]
[340069524,1728459068632,-500.0,0.00055232,120]
[340069525,1728459068642,-503.67894069,0.00055232,120]
[340069526,1728459068651,-500.0,0.00055232,120]
[340069527,1728459068661,-500.0,0.00055232,120]
[340069528,1728459068670,-500.0,0.00055232,120]
[340069529,1728459068680,-500.0,0.00055232,120]
[340069530,1728459068689,-500.0,0.00055232,120]
[340069531,1728459068699,-534.34181432,0.00055232,120]
[340069532,1728459068708,-500.0,0.00055232,120]
[340069533,1728459068718,-500.0,0.00055232,120]
[340069534,1728459068730,-500.0,0.00055232,120]
[340069535,1728459068740,-500.0,0.00055232,120]
[340069536,1728459068749,-500.0,0.00055232,120]
[340069537,1728459068759,-500.0,0.00055232,120]
[340069538,1728459068769,-500.0,0.00055232,120]
[340069539,1728459068779,-500.0,0.00055232,120]
[340069540,1728459068788,-500.0,0.00055232,120]
[340069541,1728459068797,-504.80975373,0.00055232,120]
[340069542,1728459068806,-500.0,0.00055232,120]
[340069543,1728459068816,-522.93339497,0.00055232,120]
[340069544,1728459068825,-500.0,0.00055232,120]
[340069545,1728459068835,-500.0,0.00055232,120]
[340069546,1728459068844,-326.28368419,0.00055232,120]
[340069547,1728459068853,-500.0,0.00055232,120]
[340069548,1728459068862,-500.0,0.00055232,120]
[340069549,1728459068872,-645.52906655,0.00055232,120]
[340069550,1728459068881,-510.99295391,0.00055232,120]
[340069551,1728459068890,-500.0,0.00055232,120]
[340069552,1728459068899,-500.0,0.00055232,120]
[340069553,1728459068908,-500.0,0.00055232,120]
[340069554,1728459068917,-500.0,0.00055232,120]
[340069555,1728459068926,-500.0,0.00055232,120]
[340069556,1728459068936,-503.38394731,0.00055232,120]
[340069557,1728459068945,-500.0,0.00055232,120]
[340069558,1728459068955,-500.0,0.00055232,120]
[340069559,1728459068964,-513.6600319,0.00055232,120]
[340069560,1728459068974,-500.0,0.00055232,120]
[340069561,1728459068984,-500.0,0.00055232,120]
[340069562,1728459068993,-500.0,0.00055232,120]
[340069563,1728459069003,-500.0,0.00055232,120]
[340069564,1728459069012,-500.0,0.00055232,120]
[340069565,1728459069021,-500.0,0.00055232,120]
[340069566,1728459069031,-175.32828766,0.00055232,120]
[340069567,1728459069040,-500.0,0.00055232,120]
[340069568,1728459069049,-566.95419218,0.00055232,120]
[340069569,1728459069058,-500.0,0.00055232,120]
[340069570,1728459069070,-506.78321564,0.00055232,120]
[340069571,1728459069079,-500.0,0.00055232,120]
[340069572,1728459069088,-514.25226409,0.00055232,120]
[340069573,1728459069098,-639.12556795,0.00055232,120]
[340069574,1728459069107,-500.0,0.00055232,120]
[340069575,1728459069116,-500.0,0.00055232,120]
[340069576,1728459069126,-362.95560632,0.00055232,120]
[340069577,1728459069136,-500.0,0.00055232,120]
[340069578,1728459069145,-500.0,0.00055232,120]
[340069579,1728459069154,-500.0,0.00055232,120]
[340069580,1728459069164,-534.66047566,0.00055232,120]
[340069581,1728459069174,-500.0,0.00055232,120]
[340069582,1728459069183,-603.31639259,0.00055232,120]
[340069583,1728459069192,-1411.7,0.00055232,120]
[340069584,1728459069202,-500.0,0.00055232,120]
[340069585,1728459069212,-500.0,0.00055232,120]
[340069586,1728459069222,-310.40546313,0.00055232,120]
[340069587,1728459069232,-500.0,0.00055232,120]
[340069588,1728459069243,-500.0,0.00055232,120]
[340069589,1728459069254,-505.20367682,0.00055232,120]
[340069590,1728459069263,-500.0,0.00055232,120]
[340069591,1728459069273,-500.0,0.00055232,120]
[340069592,1728459069282,-500.0,0.00055232,120]
[340069593,1728459069291,-184.38214199,0.00055232,120]
[340069594,1728459069302,-500.0,0.00055232,120]
[340069595,1728459069387,-506.79015502,0.00055232,120]
[340069596,1728459069397,-500.0,0.00055232,120]
[340069597,1728459069407,-501.7733103,0.00055232,120]
[340069598,1728459069416,-506.0645289,0.00055232,120]
[340069599,1728459069427,-519.63305094,0.00055232,120]
[340069600,1728459069437,-1143.64,0.00055232,120]
[340069601,1728459069447,-538.26870714,0.00055232,120]
[340069602,1728459069457,-500.0,0.00055232,120]
[340069603,1728459069466,-500.0,0.00055232,120]
[340069604,1728459069475,-501.34368014,0.00055232,120]
[340069605,1728459069485,-500.0,0.00055232,120]
[340069606,1728459069494,-33358.4,0.00055232,18]
[340069607,1728459069503,-504.95328738,0.00055232,120]
[340069608,1728459069512,-500.0,0.00055232,120]
[340069609,1728459069522,-500.0,0.00055232,120]
[340069610,1728459069531,-519.8533589,0.00055232,120]
[340069611,1728459069540,-500.0,0.00055232,120]
[340069612,1728459069549,-500.0,0.00055232,120]
[340069613,1728459069559,-4777.17,0.00055232,21]
[340069614,1728459069568,-510.99448722,0.00055232,120]
[340069615,1728459069578,-504.07878968,0.00055232,120]
[340069616,1728459069588,-500.0,0.00055232,120]
[340069617,1728459069597,-512.5252711,0.00055232,30]
[340069618,1728459069607,-500.0,0.00055232,120]
[340069619,1728459069616,-503.37652903,0.00055232,120]
[340069620,1728459069626,-599.11,0.00055232,120]
[340069621,1728459069635,-568.46898337,0.00055232,120]
[340069622,1728459069645,-1654.31,0.00055232,120]
[340069623,1728459069655,-500.0,0.00055232,120]
[340069624,1728459069664,-3371.8,0.00055232,120]
[340069625,1728459069674,-500.0,0.00055232,120]
[340069626,1728459069683,-500.0,0.00055232,120]
[340069627,1728459069692,-825.52,0.00055232,120]
[340069628,1728459069701,-500.0,0.00055232,120]
[340069629,1728459069710,-500.0,0.00055232,120]
[340069630,1728459069719,-500.0,0.00055232,120]
[340069631,1728459069728,-500.0,0.00055232,120]
[340069632,1728459069738,-500.0,0.00055232,120]
[340069633,1728459069747,-500.0,0.00055232,30]
[340069634,1728459069756,-537.56,0.00055232,120]
[340069635,1728459069766,-500.0,0.00055232,120]
[340069636,1728459069776,-500.0,0.00055232,120]
[340069637,1728459069785,-500.0,0.00055232,120]
[340069638,1728459069795,-500.0,0.00055232,120]
[340069639,1728459069804,-500.0,0.00055232,120]
[340069640,1728459069813,-503.28394482,0.00055232,120]
[340069641,1728459069824,-500.0,0.00055232,120]
[340069642,1728459069834,-505.42410205,0.00055232,120]
[340069643,1728459069843,-500.0,0.00055232,120]
[340069644,1728459069853,-500.0,0.00055232,120]
[340069645,1728459069862,-500.0,0.00055232,120]
[340069646,1728459069871,-500.0,0.00055232,120]
[340069647,1728459069881,-500.0,0.00055232,7]
[340069648,1728459069891,-500.0,0.00055232,120]
[340069649,1728459069900,-500.0,0.00055232,120]
[340069650,1728459069910,-500.0,0.00055232,120]
[340069651,1728459069919,-2641.39,0.00055232,120]
[340069652,1728459069928,-500.0,0.00055232,120]
[340069653,1728459069937,-500.0,0.00055232,120]
[340069654,1728459069947,-503.0041305,0.00055232,120]
[340069655,1728459069956,-500.0,0.00055232,120]
[340069656,1728459069966,-532.4713563,0.00055232,120]
[340069657,1728459069976,-500.0,0.00055232,120]
[340069658,1728459069986,-500.0,0.00055232,120]
[340069659,1728459069996,-613.01635998,0.00055232,120]
[340069660,1728459070006,-500.0,0.00055232,120]
[340069661,1728459070015,-503.5416763,0.00055232,120]
[340069662,1728459070025,-500.0,0.00055232,120]
[340069663,1728459070034,-500.0,0.00055232,120]
[340069664,1728459070045,-612.6688749,0.00055232,120]
[340069665,1728459070055,-350.0377134,0.00055232,120]
[340069666,1728459070066,-500.0,0.00055232,120]
[340069667,1728459070076,-500.0,0.00055232,120]
[340069668,1728459070085,-599.88588621,0.00055232,3]
[340069669,1728459070095,-500.0,0.00055232,120]
[340069670,1728459070105,-300.0,0.00055232,120]
[340069671,1728459070115,-1000.0,0.00055232,120]
[340069672,1728459070124,-1000.0,0.00055232,5]
[340069673,1728459070135,-515.94460166,0.00055232,30]
[340069674,1728459070145,-579.17,0.00055232,120]
[340069675,1728459070155,-182.03790588,0.00055232,120]
[340069676,1728459070165,-1000.0,0.00055232,120]
[340069677,1728459070175,-2000.0,0.00055232,120]
[340069678,1728459070184,-624.24082412,0.00055232,120]
[340069679,1728459070194,-500.0,0.00055232,120]
[340069680,1728459070205,-500.0,0.00055232,120]
[340069681,1728459070215,-500.0,0.00055232,120]
[340069682,1728459070225,-500.0,0.00055232,2]
[340069683,1728459070235,-315.49088758,0.00055232,2]
[340069684,1728459070245,-500.0,0.00055232,120]
[340069685,1728459070254,-1500.0,0.00055232,120]
[340069686,1728459070265,-1000.0,0.00055232,120]
[340069687,1728459070275,-500.0,0.00055232,120]
[340069688,1728459070285,-151.0,0.00055299,120]
[340069689,1728459070296,-2803.3704,0.0005544,30]
[340069690,1728459070308,-4103.61886755,0.00055555,55]
[340069691,1728459070317,-500.0,0.00055671,120]
[340069692,1728459070326,-298.3403095,0.00055671,120]
[340069693,1728459070335,-500.0,0.00055671,120]
[340069694,1728459070345,-369.37508662,0.00055671,120]
[340069695,1728459070354,-500.0,0.00055671,90]
[340069696,1728459070364,-500.0,0.00055671,120]
[340069697,1728459070373,-500.0,0.00055671,120]
[340069698,1728459070383,-163.66486864,0.00055671,120]
[340069699,1728459070392,-500.0,0.00055671,120]
[340069700,1728459070401,-500.0,0.00055671,120]
[340069701,1728459070411,-500.0,0.00055671,120]
[340069702,1728459070421,-500.0,0.00055671,120]
[340069703,1728459070431,-507.52484437,0.00055671,120]
[340069704,1728459070505,-500.0,0.00055671,120]
[340069705,1728459070516,-677.71,0.00055671,120]
[340069706,1728459070528,-500.0,0.00055671,120]
[340069707,1728459070538,-500.0,0.00055671,120]
[340069708,1728459070549,-500.0,0.00055671,120]
[340069709,1728459070558,-500.0,0.00055671,120]
[340069710,1728459070569,-500.0,0.00055671,120]
[340069711,1728459070578,-500.0,0.00055671,120]
[340069712,1728459070588,-195.91019852,0.00055671,120]
[340069713,1728459070597,-519.51656884,0.00055671,120]
[340069714,1728459070606,-500.0,0.00055671,120]
[340069715,1728459070615,-500.0,0.00055671,120]
[340069716,1728459070627,-500.0,0.00055671,120]
[340069717,1728459070636,-500.0,0.00055671,120]
[340069718,1728459070646,-611.7898874,0.00055671,120]
[340069719,1728459070656,-503.4120034,0.00055671,120]
[340069720,1728459070667,-504.87553054,0.00055671,120]
[340069721,1728459070677,-500.0,0.00055671,120]
[340069722,1728459070688,-500.0,0.00055671,120]
[340069723,1728459070699,-419.51802713,0.00055671,120]
[340069724,1728459070710,-500.0,0.00055671,120]
[340069725,1728459070720,-500.0,0.00055671,120]
[340069726,1728459070730,-500.0,0.00055671,120]
[340069727,1728459070740,-500.0,0.00055671,120]
[340069728,1728459070750,-561.25906679,0.00055671,120]
[340069729,1728459070760,-502.89661163,0.00055671,120]
[340069730,1728459070770,-500.0,0.00055671,120]
[340069731,1728459070780,-505.62043902,0.00055671,120]
[340069732,1728459070790,-503.44202095,0.00055671,120]
[340069733,1728459070800,-1318.27,0.00055671,120]
[340069734,1728459070809,-500.0,0.00055671,120]
[340069735,1728459070820,-500.0,0.00055671,120]
[340069736,1728459070835,-500.0,0.00055671,120]
[340069737,1728459070847,-504.098678,0.00055671,120]
[340069738,1728459070856,-500.0,0.00055671,120]
[340069739,1728459070865,-500.0,0.00055671,120]
[340069740,1728459070875,-282.98520902,0.00055671,120]
[340069741,1728459070885,-503.62273815,0.00055671,120]
[340069742,1728459070894,-500.0,0.00055671,120]
[340069743,1728459070903,-500.0,0.00055671,120]
[340069744,1728459070912,-505.21999012,0.00055671,120]
[340069745,1728459070922,-500.0,0.00055671,120]
[340069746,1728459070931,-503.01928067,0.00055671,120]
[340069747,1728459070941,-500.0,0.00055671,120]
[340069748,1728459070951,-500.0,0.00055671,120]
[340069749,1728459070960,-500.0,0.00055671,120]
[340069750,1728459070970,-500.0,0.00055671,120]
[340069751,1728459070979,-500.0,0.00055671,120]
[340069752,1728459070989,-500.0,0.00055671,120]
[340069753,1728459070999,-500.0,0.00055671,120]
[340069754,1728459071019,-500.0,0.00055671,120]
[340069755,1728459071036,-500.0,0.00055671,120]
[340069756,1728459071055,-500.0,0.00055671,120]
[340069757,1728459071075,-500.0,0.00055671,120]
[340069758,1728459071093,-500.0,0.00055671,120]
[340069759,1728459071111,-500.0,0.00055671,120]
[340069760,1728459071128,-506.37571078,0.00055671,120]
[340069761,1728459071144,-500.0,0.00055671,120]
[340069762,1728459071163,-614.46058071,0.00055671,120]
[340069763,1728459071184,-500.0,0.00055671,120]
[340069764,1728459071199,-273.08864302,0.00055671,120]
[340069765,1728459071216,-506.77859202,0.00055671,120]
[340069766,1728459071233,-500.0,0.00055671,120]
[340069767,1728459071250,-500.0,0.00055671,120]
[340069768,1728459071266,-1667.02,0.00055671,120]
[340069769,1728459071281,-500.0,0.00055671,120]
[340069770,1728459071294,-500.0,0.00055671,120]
[340069771,1728459071310,-500.0,0.00055671,120]
[340069772,1728459071323,-1163.83,0.00055671,120]
[340069773,1728459071339,-343.15534672,0.00055671,120]
[340069774,1728459071356,-500.0,0.00055671,120]
[340069775,1728459071371,-323.8679377,0.00055671,120]
[340069776,1728459071386,-500.0,0.00055671,120]
[340069777,1728459071402,-500.0,0.00055671,120]
[340069778,1728459071418,-500.0,0.00055671,120]
[340069779,1728459071433,-500.0,0.00055671,120]
[340069780,1728459071448,-632.45518485,0.00055671,120]
[340069781,1728459071463,-500.0,0.00055671,120]
[340069782,1728459071478,-500.0,0.00055671,120]
[340069783,1728459071491,-500.0,0.00055671,120]
[340069784,1728459071506,-500.0,0.00055671,120]
[340069785,1728459071522,-500.0,0.00055671,120]
[340069786,1728459071536,-500.0,0.00055671,120]
[340069787,1728459071551,-465.23920283,0.00055671,120]
[340069788,1728459071567,-500.0,0.00055671,120]
[340069789,1728459071582,-500.0,0.00055671,120]
[340069790,1728459071598,-500.0,0.00055671,120]
[340069791,1728459071613,-541.93780636,0.00055671,120]
[340069792,1728459071629,-240.78864157,0.00055671,120]
[340069793,1728459071643,-509.40214087,0.00055671,120]
[340069794,1728459071657,-500.0,0.00055671,120]
[340069795,1728459071672,-500.0,0.00055671,120]
[340069796,1728459071686,-500.0,0.00055671,120]
[340069797,1728459071701,-500.0,0.00055671,120]
[340069798,1728459071715,-500.0,0.00055671,120]
[340069799,1728459071730,-503.07435306,0.00055671,120]
[340069800,1728459071745,-502.81331369,0.00055671,120]
[340069801,1728459071759,-500.0,0.00055671,120]
[340069802,1728459071774,-500.0,0.00055671,30]
[340069803,1728459071789,-500.0,0.00055671,120]
[340069804,1728459071911,-504.55403582,0.00055671,120]
[340069805,1728459071922,-500.0,0.00055671,120]
[340069806,1728459071933,-500.0,0.00055671,120]
[340069807,1728459071943,-500.0,0.00055671,120]
[340069808,1728459071953,-500.0,0.00055671,120]
[340069809,1728459071962,-500.0,0.00055671,120]
[340069810,1728459071972,-503.12558229,0.00055671,120]
[340069811,1728459071982,-260.37421912,0.00055671,120]
[340069812,1728459071991,-500.0,0.00055671,120]
[340069813,1728459072000,-511.39976443,0.00055671,120]
[340069814,1728459072010,-500.0,0.00055671,120]
[340069815,1728459072019,-1071.26,0.00055671,120]
[340069816,1728459072029,-500.0,0.00055671,120]
[340069817,1728459072038,-339.06428341,0.00055671,120]
[340069818,1728459072047,-500.0,0.00055671,120]
[340069819,1728459072057,-500.0,0.00055671,120]
[340069820,1728459072066,-500.0,0.00055671,120]
[340069821,1728459072075,-500.0,0.00055671,10]
[340069822,1728459072085,-500.0,0.00055671,120]
[340069823,1728459072095,-500.0,0.00055671,120]
[340069824,1728459072104,-221.26177369,0.00055671,120]
[340069825,1728459072113,-500.0,0.00055671,120]
[340069826,1728459072122,-500.0,0.00055671,120]
[340069827,1728459072131,-517.82133966,0.00055671,120]
[340069828,1728459072140,-209.05636479,0.00055671,120]
[340069829,1728459072150,-506.87749437,0.00055671,120]
[340069830,1728459072160,-513.93385923,0.00055671,120]
[340069831,1728459072170,-500.0,0.00055671,120]
[340069832,1728459072181,-500.0,0.00055671,120]
[340069833,1728459072192,-500.0,0.00055671,120]
[340069834,1728459072203,-500.0,0.00055671,120]
[340069835,1728459072214,-1191.19,0.00055671,120]
[340069836,1728459072225,-548.79609004,0.00055671,120]
[340069837,1728459072235,-500.0,0.00055671,120]
[340069838,1728459072245,-500.0,0.00055671,120]
[340069839,1728459072255,-500.0,0.00055671,120]
[340069840,1728459072266,-500.0,0.00055671,120]
[340069841,1728459072276,-500.0,0.00055671,120]
[340069842,1728459072288,-500.0,0.00055671,120]
[340069843,1728459072299,-500.0,0.00055671,120]
[340069844,1728459072309,-500.0,0.00055671,120]
[340069845,1728459072318,-507.39541821,0.00055671,120]
[340069846,1728459072328,-506.32293788,0.00055671,120]
[340069847,1728459072337,-500.0,0.00055671,120]
[340069848,1728459072347,-500.0,0.00055671,120]
[340069849,1728459072356,-500.0,0.00055671,120]
[340069850,1728459072366,-500.0,0.00055671,120]
[340069851,1728459072376,-500.0,0.00055671,120]
[340069852,1728459072385,-517.20898035,0.00055671,120]
[340069853,1728459072395,-500.0,0.00055671,120]
[340069854,1728459072404,-500.0,0.00055671,2]
[340069855,1728459072415,-504.03092234,0.00055671,120]
[340069856,1728459072426,-500.0,0.00055671,120]
[340069857,1728459072436,-500.0,0.00055671,120]
[340069858,1728459072448,-500.0,0.00055671,120]
[340069859,1728459072458,-500.0,0.00055671,120]
[340069860,1728459072468,-500.0,0.00055671,120]
[340069861,1728459072478,-751.07,0.00055671,120]
[340069862,1728459072487,-500.0,0.00055671,120]
[340069863,1728459072496,-312.05460802,0.00055671,120]
[340069864,1728459072507,-500.0,0.00055671,120]
[340069865,1728459072517,-500.0,0.00055671,120]
[340069866,1728459072528,-500.0,0.00055671,120]
[340069867,1728459072538,-506.78236492,0.00055671,120]
[340069868,1728459072547,-523.05,0.00055671,120]
[340069869,1728459072557,-500.0,0.00055671,120]
[340069870,1728459072566,-500.0,0.00055671,120]
[340069871,1728459072578,-512.28821692,0.00055671,120]
[340069872,1728459072589,-500.0,0.00055671,120]
[340069873,1728459072599,-506.8084759,0.00055671,120]
[340069874,1728459072609,-500.0,0.00055671,60]
[340069875,1728459072618,-500.0,0.00055671,120]
[340069876,1728459072628,-627.85,0.00055671,2]
[340069877,1728459072637,-500.0,0.00055671,120]
[340069878,1728459072646,-682.88,0.00055671,120]
[340069879,1728459072656,-500.0,0.00055671,2]
[340069880,1728459072665,-500.0,0.00055671,120]
[340069881,1728459072675,-500.0,0.00055671,120]
[340069882,1728459072684,-500.0,0.00055671,120]
[340069883,1728459072695,-500.0,0.00055671,10]
[340069884,1728459072706,-500.0,0.00055671,120]
[340069885,1728459072716,-500.0,0.00055671,120]
[340069886,1728459072725,-500.0,0.00055671,120]
[340069887,1728459072735,-500.0,0.00055671,120]
[340069888,1728459072743,-500.0,0.00055671,120]
[340069889,1728459072753,-307.75242161,0.00055671,120]
[340069890,1728459072762,-164.48008459,0.00055671,120]
[340069891,1728459072771,-502.99594308,0.00055671,120]
[340069892,1728459072780,-500.0,0.00055671,120]
[340069893,1728459072790,-640.31366293,0.00055671,120]
[340069894,1728459072799,-500.0,0.00055671,120]
[340069895,1728459072809,-500.0,0.00055671,120]
[340069896,1728459072819,-500.0,0.00055671,120]
[340069897,1728459072829,-500.0,0.00055671,120]
[340069898,1728459072838,-500.0,0.00055671,120]
[340069899,1728459072848,-500.0,0.00055671,120]
[340069900,1728459072857,-500.0,0.00055671,120]
[340069901,1728459072866,-500.0,0.00055671,120]
[340069902,1728459072876,-517.34728997,0.00055671,120]
[340069903,1728459072886,-503.71301129,0.00055671,120]
[340069904,1728459072895,-500.0,0.00055671,120]
[340069905,1728459072904,-500.0,0.00055671,120]
[340069906,1728459072914,-604.80352802,0.00055671,120]
[340069907,1728459072924,-500.0,0.00055671,120]
[340069908,1728459072934,-272.88450945,0.00055671,120]
[340069909,1728459072943,-500.0,0.00055671,120]
[340069910,1728459072952,-529.38095942,0.00055671,120]
[340069911,1728459072962,-500.0,0.00055671,120]
[340069912,1728459072972,-500.0,0.00055671,120]
[340069913,1728459072982,-500.0,0.00055671,120]
[340069914,1728459072991,-451.43370913,0.00055671,120]
[340069915,1728459073001,-500.0,0.00055671,120]
[340069916,1728459073010,-500.0,0.00055671,120]
[340069917,1728459073019,-500.0,0.00055671,120]
[340069918,1728459073030,-505.6446099,0.00055671,120]
[340069919,1728459073039,-500.0,0.00055671,120]
[340069920,1728459073048,-509.53048328,0.00055671,120]
[340069921,1728459073058,-500.0,0.00055671,120]
[340069922,1728459073067,-500.0,0.00055671,120]
[340069923,1728459073078,-500.0,0.00055671,120]
[340069924,1728459073087,-500.0,0.00055671,120]
[340069925,1728459073096,-500.0,0.00055671,120]
[340069926,1728459073106,-158.99204913,0.00055671,120]
[340069927,1728459073115,-500.0,0.00055671,120]
[340069928,1728459073125,-532.80777804,0.00055671,120]
[340069929,1728459073134,-500.0,0.00055671,120]
[340069930,1728459073144,-500.0,0.00055671,120]
[340069931,1728459073154,-500.0,0.00055671,120]
[340069932,1728459073163,-500.0,0.00055671,120]
[340069933,1728459073173,-500.0,0.00055671,120]
[340069934,1728459073182,-500.0,0.00055671,120]
[340069935,1728459073262,-500.0,0.00055671,120]
[340069936,1728459073273,-500.0,0.00055671,120]
[340069937,1728459073282,-500.0,0.00055671,120]
[340069938,1728459073292,-500.0,0.00055671,120]
[340069939,1728459073301,-507.03214988,0.00055671,120]
[340069940,1728459073311,-500.0,0.00055671,120]
[340069941,1728459073322,-278.22233135,0.00055671,120]
[340069942,1728459073331,-430.68750699,0.00055671,120]
[340069943,1728459073342,-500.0,0.00055671,120]
[340069944,1728459073353,-595.56931862,0.00055671,120]
[340069945,1728459073363,-500.0,0.00055671,120]
[340069946,1728459073372,-522.09041955,0.00055671,120]
[340069947,1728459073382,-500.0,0.00055671,120]
[340069948,1728459073391,-607.67285255,0.00055671,120]
[340069949,1728459073401,-500.0,0.00055671,120]
[340069950,1728459073411,-503.10208,0.00055671,120]
[340069951,1728459073420,-507.04529466,0.00055671,120]
[340069952,1728459073430,-500.0,0.00055671,120]
[340069953,1728459073440,-500.0,0.00055671,120]
[340069954,1728459073450,-500.0,0.00055671,120]
[340069955,1728459073459,-500.0,0.00055671,120]
[340069956,1728459073469,-500.0,0.00055671,120]
[340069957,1728459073478,-500.0,0.00055671,120]
[340069958,1728459073487,-1411.7,0.00055671,120]
[340069959,1728459073496,-500.0,0.00055671,120]
[340069960,1728459073505,-592.75206549,0.00055671,120]
[340069961,1728459073515,-500.0,0.00055671,120]
[340069962,1728459073524,-500.0,0.00055671,120]
[340069963,1728459073534,-623.07428423,0.00055671,120]
[340069964,1728459073543,-520.76724853,0.00055671,120]
[340069965,1728459073553,-500.0,0.00055671,120]
[340069966,1728459073563,-542.76313736,0.00055671,120]
[340069967,1728459073575,-620.51540708,0.00055671,120]
[340069968,1728459073584,-1143.64,0.00055671,120]
[340069969,1728459073593,-500.0,0.00055671,120]
[340069970,1728459073602,-500.0,0.00055671,120]
[340069971,1728459073611,-33358.4,0.00055671,18]
[340069972,1728459073620,-500.0,0.00055671,120]
[340069973,1728459073630,-500.0,0.00055671,120]
[340069974,1728459073639,-500.0,0.00055671,120]
[340069975,1728459073648,-500.0,0.00055671,120]
[340069976,1728459073658,-500.0,0.00055671,120]
[340069977,1728459073667,-4777.17,0.00055671,21]
[340069978,1728459073677,-500.0,0.00055671,120]
[340069979,1728459073686,-500.0,0.00055671,120]
[340069980,1728459073696,-599.11,0.00055671,120]
[340069981,1728459073705,-1654.31,0.00055671,120]
[340069982,1728459073715,-500.0,0.00055671,120]
[340069983,1728459073724,-3371.8,0.00055671,120]
[340069984,1728459073734,-500.0,0.00055671,120]
[340069985,1728459073743,-500.0,0.00055671,120]
[340069986,1728459073752,-825.52,0.00055671,120]
[340069987,1728459073762,-500.0,0.00055671,120]
[340069988,1728459073771,-500.0,0.00055671,120]
[340069989,1728459073780,-500.0,0.00055671,120]
[340069990,1728459073790,-500.0,0.00055671,120]
[340069991,1728459073799,-500.0,0.00055671,30]
[340069992,1728459073808,-537.56,0.00055671,120]
[340069993,1728459073817,-513.33074569,0.00055671,120]
[340069994,1728459073829,-500.0,0.00055671,120]
[340069995,1728459073838,-500.0,0.00055671,120]
[340069996,1728459073847,-500.0,0.00055671,120]
[340069997,1728459073857,-500.0,0.00055671,120]
[340069998,1728459073866,-500.0,0.00055671,120]
[340069999,1728459073876,-500.0,0.00055671,120]
[340070000,1728459073886,-500.0,0.00055671,120]
[340070001,1728459073895,-500.0,0.00055671,120]
[340070002,1728459073904,-328.82002059,0.00055671,120]
[340070003,1728459073915,-500.0,0.00055671,7]
[340070004,1728459073924,-308.36709599,0.00055671,120]
[340070005,1728459073934,-500.0,0.00055671,120]
[340070006,1728459073943,-500.0,0.00055671,120]
[340070007,1728459073953,-2641.39,0.00055671,120]
[340070008,1728459073962,-500.0,0.00055671,120]
[340070009,1728459073972,-500.0,0.00055671,120]
[340070010,1728459073981,-494.98655041,0.00055671,120]
[340070011,1728459073990,-500.0,0.00055671,120]
[340070012,1728459074000,-512.60828995,0.00055671,120]
[340070013,1728459074009,-500.0,0.00055671,120]
[340070014,1728459074019,-500.0,0.00055671,120]
[340070015,1728459074029,-505.11424248,0.00055671,120]
[340070016,1728459074038,-500.0,0.00055671,120]
[340070017,1728459074047,-300.994374,0.00055671,120]